bitfinex-derivatives/quotes_SOLF0:USTF0_20240830
["timestamp","ask_amount","ask_price","bid_price","bid_amount"]
[1725003106136,3.63092254,139.55,139.53,0.0514439]
[1725003106733,3.583,139.54,139.53,0.0514439]
[1725003107835,3.5838,139.51,139.47,1.3725]
[1725003108235,3.5838,139.51,139.45,3.60085807]
[1725003108236,27.47,139.52,139.42,27.47]
[1725003108437,5.12,139.51,139.43,1.3725]
[1725003108637,3.584,139.5,139.44,3.55745107]
[1725003108840,0.04999514,139.48,139.46,0.05354569]
[1725003109539,0.04999514,139.48,139.47,31.0548]
[1725003109837,6.5405,139.55,139.47,27.47]
[1725003110543,3.583,139.54,139.49,3.5842]
[1725003110732,0.04756765,139.53,139.5,0.05433434]
[1725003111534,0.04756765,139.53,139.5,3.63833434]
[1725003112141,0.04756765,139.53,139.5,0.05433434]
[1725003113241,0.04756765,139.53,139.51,3.5837]
[1725003113646,0.04756765,139.53,139.5,0.05433434]
[1725003114443,0.04756765,139.53,139.51,3.5836]
[1725003115042,0.04756765,139.53,139.5,0.05433434]
[1725003115445,0.04756765,139.53,139.51,3.5836]
[1725003120240,1.2995,139.62,139.52,27.47]
[1725003120446,32.59,139.61,139.52,31.04782764]
[1725003120646,3.5819,139.59,139.54,3.5829]
[1725003120850,5.12,139.6,139.52,31.04782764]
[1725003121147,27.47,139.6,139.53,3.5831]
[1725003121343,3.63347722,139.58,139.55,0.05144576]
[1725003123143,0.05147722,139.58,139.56,3.5823]
[1725003123348,0.05147722,139.58,139.55,0.05144576]
[1725003125143,0.05147722,139.58,139.55,27.52144576]
[1725003125545,0.05147722,139.58,139.57,27.47]
[1725003126344,0.05147722,139.58,139.56,31.0525]
[1725003127250,0.05147722,139.58,139.57,3.5822]
[1725003127647,3.62698291,139.63,139.57,27.47]
[1725003127843,1.3027,139.67,139.53,3.8789]
[1725003128042,6.4227,139.67,139.58,27.47]
[1725003128248,27.47,139.66,139.58,27.47]
[1725003128545,32.59,139.66,139.58,27.47]
[1725003128742,0.05328702,139.63,139.61,0.04593668]
[1725003130151,59.68806565,139.69,139.62,27.47]
[1725003130353,3.49437719,139.68,139.62,27.47]
[1725003130554,59.68806565,139.69,139.63,3.64515435]
[1725003131048,0.05392893,139.67,139.65,0.05161089]
[1725003131244,0.05392893,139.67,139.65,3.63161089]
[1725003131647,0.05392893,139.67,139.65,0.05161089]
[1725003134658,27.47,139.79,139.71,23.9508]
[1725003134859,3.58370288,139.78,139.69,27.47]
[1725003135153,27.47,139.75,139.65,3.56150834]
[1725003135353,27.47,139.75,139.66,5.46]
[1725003135658,27.47,139.75,139.69,0.05424183]
[1725003135659,0.05241002,139.72,139.69,0.05424183]
[1725003136655,0.05241002,139.72,139.7,3.5789]
[1725003137150,0.05241002,139.72,139.69,0.05424183]
[1725003137350,0.05241002,139.72,139.71,3.5786]
[1725003138748,83.20693785,139.87,139.71,27.47]
[1725003139060,27.47,139.8,139.72,3.62796525]
[1725003139252,3.49199259,139.79,139.72,3.62796525]
[1725003139955,0.03607897,139.77,139.74,0.05480564]
[1725003140153,0.03607897,139.77,139.75,3.5774]
[1725003140746,0.03607897,139.77,139.74,3.63260564]
[1725003142056,0.03607897,139.77,139.75,3.5776]
[1725003142356,0.03607897,139.77,139.74,0.05480564]
[1725003142753,0.03607897,139.77,139.75,3.5776]
[1725003143050,0.03607897,139.77,139.74,0.05480564]
[1725003143256,0.03607897,139.77,139.74,3.63240564]
[1725003143755,27.47,139.76,139.74,0.05480564]
[1725003144455,0.03607897,139.77,139.74,0.05480564]
[1725003145256,0.03607897,139.77,139.75,3.5776]
[1725003145448,0.03607897,139.77,139.74,0.05480564]
[1725003145647,0.03607897,139.77,139.74,3.63250564]
[1725003146054,0.03607897,139.77,139.74,0.05480564]
[1725003146253,0.03607897,139.77,139.76,3.5773]
[1725003146454,0.03607897,139.77,139.74,0.05480564]
[1725003147063,0.03607897,139.77,139.75,3.5774]
[1725003147764,0.03607897,139.77,139.74,3.63250564]
[1725003151966,0.03607897,139.77,139.75,3.5776]
[1725003152866,0.03607897,139.77,139.74,3.63250564]
[1725003153365,3.61317897,139.77,139.74,3.63250564]
[1725003155569,3.61317897,139.77,139.74,0.05480564]
[1725003156168,27.47,139.76,139.51,14.02510222]
[1725003156363,4.0102,139.78,139.66,27.47]
[1725003156364,27.47,139.74,139.66,27.47]
[1725003156562,3.5786,139.71,139.64,117.77431536]
[1725003156757,3.5786,139.71,139.68,3.5794]
[1725003157268,3.63286231,139.71,139.68,3.63089829]
[1725003157866,0.05426231,139.71,139.68,0.05149829]
[1725003158463,0.05426231,139.71,139.69,3.579]
[1725003158966,0.05426231,139.71,139.7,3.5789]
[1725003159269,0.05426231,139.71,139.68,0.05149829]
[1725003160670,27.52426231,139.71,139.68,0.05149829]
[1725003160875,3.5789,139.7,139.68,0.05149829]
[1725003161169,27.52426231,139.71,139.68,0.05149829]
[1725003161367,3.5793,139.69,139.65,3.58]
[1725003162361,3.5793,139.69,139.66,0.0486571]
[1725003164676,3.5794,139.68,139.66,0.0486571]
[1725003165478,3.5792,139.69,139.66,0.0486571]
[1725003166177,3.5794,139.68,139.66,0.0486571]
[1725003166378,27.47,139.69,139.59,31.02087277]
[1725003166568,27.47,139.66,139.57,27.47]
[1725003166765,3.59740638,139.65,139.57,27.47]
[1725003167179,7.17770638,139.65,139.57,27.47]
[1725003167381,7.17770638,139.65,139.61,3.5811]
[1725003167676,0.05378444,139.62,139.61,3.5811]
[1725003168379,31.0,139.69,139.61,27.47]
[1725003168875,31.0,139.69,139.65,3.5799]
[1725003169278,0.04661563,139.68,139.66,0.04834603]
[1725003169575,0.04661563,139.68,139.66,3.62814603]
[1725003170377,0.04661563,139.68,139.66,0.04834603]
[1725003171178,3.62601563,139.68,139.66,0.04834603]
[1725003172979,3.5796,139.67,139.66,0.04834603]
[1725003173285,31.01908301,139.68,139.59,27.47]
[1725003173478,3.5801,139.66,139.62,3.5807]
[1725003174082,0.05257782,139.65,139.63,0.05078184]
[1725003175972,3.63277782,139.65,139.63,0.05078184]
[1725003176682,0.05257782,139.65,139.63,0.05078184]
[1725003178483,0.05257782,139.65,139.63,3.63138184]
[1725003179187,3.5804,139.64,139.63,0.05078184]
[1725003179983,3.5808,139.63,139.57,27.47]
[1725003180182,28.7572,139.66,139.54,5.42]
[1725003180387,28.7572,139.66,139.57,27.47]
[1725003180687,28.7572,139.66,139.55,5.622]
[1725003180890,27.47,139.65,139.55,27.47]
[1725003181090,0.04717728,139.61,139.59,0.04553946]
[1725003181382,3.62837728,139.61,139.59,0.04553946]
[1725003181581,0.04717728,139.61,139.59,0.04553946]
[1725003185791,3.55706125,139.61,139.59,0.04553946]
[1725003185982,0.04717728,139.61,139.59,0.04553946]
[1725003186482,3.5814,139.6,139.59,0.04553946]
[1725003186694,3.59144027,139.61,139.59,0.04553946]
[1725003186892,7.17274027,139.61,139.59,0.04553946]
[1725003188092,3.59144027,139.61,139.59,0.04553946]
[1725003189290,7.17274027,139.61,139.59,0.04553946]
[1725003189492,3.62847728,139.61,139.59,0.04553946]
[1725003189894,3.5814,139.6,139.59,0.04553946]
[1725003190787,3.582,139.58,139.52,31.0758415]
[1725003191186,3.582,139.58,139.53,3.583]
[1725003191492,3.582,139.58,139.52,31.0758415]
[1725003191691,3.582,139.58,139.52,27.47]
[1725003191894,0.04842825,139.56,139.54,0.04791856]
[1725003192685,3.63092825,139.56,139.54,0.04791856]
[1725003194192,0.04842825,139.56,139.54,0.04791856]
[1725003194790,3.63052825,139.56,139.54,0.04791856]
[1725003195495,0.04842825,139.56,139.54,0.04791856]
[1725003196098,31.04842825,139.56,139.54,0.04791856]
[1725003197999,34.63052825,139.56,139.54,0.04791856]
[1725003198187,31.04842825,139.56,139.54,0.04791856]
[1725003200597,34.63052825,139.56,139.54,0.04791856]
[1725003201291,31.04842825,139.56,139.54,0.04791856]
[1725003201888,34.63052825,139.56,139.54,0.04791856]
[1725003202094,3.63052825,139.56,139.54,0.04791856]
[1725003203900,3.5824,139.55,139.54,0.04791856]
[1725003206502,3.5829,139.53,139.5,3.5835]
[1725003207096,3.5829,139.53,139.49,3.5838]
[1725003207397,3.5829,139.53,139.46,94.75908331]
[1725003207398,8.93000852,139.54,139.46,27.47]
[1725003207607,8.93000852,139.54,139.49,0.05100089]
[1725003207608,0.05338471,139.52,139.49,0.05100089]
[1725003207805,3.63658471,139.52,139.49,0.05100089]
[1725003208816,0.05338471,139.52,139.5,27.47]
[1725003209203,0.05338471,139.52,139.5,31.0535]
[1725003210415,0.05338471,139.52,139.5,3.5835]
[1725003211108,0.05338471,139.52,139.51,3.5834]
[1725003211308,31.05338471,139.52,139.51,3.5834]
[1725003212007,31.05338471,139.52,139.5,31.0535]
[1725003212211,31.05338471,139.52,139.5,3.5835]
[1725003212713,31.05338471,139.52,139.49,3.63480089]
[1725003214216,34.63648471,139.52,139.49,3.63480089]
[1725003214415,34.63648471,139.52,139.49,0.05100089]
[1725003215315,31.05338471,139.52,139.49,3.63480089]
[1725003215510,31.05338471,139.52,139.49,27.52100089]
[1725003217017,31.05338471,139.52,139.51,3.5834]
[1725003217219,28.92168471,139.52,139.51,3.5834]
[1725003217515,28.92168471,139.52,139.51,31.0534]
[1725003218713,28.92168471,139.52,139.5,3.5836]
[1725003219114,28.92168471,139.52,139.49,27.52100089]
[1725003219311,28.92168471,139.52,139.49,0.05100089]
[1725003220624,28.92168471,139.52,139.49,3.63470089]
[1725003221823,28.92168471,139.52,139.5,3.5835]
[1725003222022,28.92168471,139.52,139.49,27.52100089]
[1725003222417,0.04591246,139.53,139.51,27.47]
[1725003222925,3.5814,139.59,139.51,27.47]
[1725003223229,3.5814,139.59,139.5,5.34]
[1725003223230,4.0011,139.6,139.54,27.47]
[1725003223415,2.0,139.6,139.59,3.5813]
[1725003223611,2.0,139.6,139.58,27.47]
[1725003224017,2.04799163,139.6,139.58,27.51560626]
[1725003224222,2.04799163,139.6,139.58,31.09710626]
[1725003224821,2.04799163,139.6,139.58,3.62710626]
[1725003225728,2.04799163,139.6,139.58,0.04560626]
[1725003229330,2.04799163,139.6,139.58,3.62700626]
[1725003233728,2.04799163,139.6,139.58,0.04560626]
[1725003235239,3.5813,139.59,139.58,0.04560626]
[1725003238338,4.8875,139.59,139.58,0.04560626]
[1725003239044,6.1853,139.59,139.58,0.04560626]
[1725003239850,3.5817,139.58,139.54,3.5824]
[1725003240144,3.5817,139.58,139.55,3.5822]
[1725003240331,2.0,139.6,139.53,3.58862157]
[1725003240527,2.0,139.6,139.52,27.47]
[1725003240732,0.04869854,139.57,139.56,3.5821]
[1725003241133,2.6692,139.66,139.56,27.47]
[1725003241334,2.6692,139.66,139.53,27.47]
[1725003241335,2.6692,139.66,139.59,27.47]
[1725003241739,3.5799,139.65,139.59,32.87]
[1725003241939,3.5799,139.65,139.59,31.13503487]
[1725003242132,3.5799,139.65,139.59,36.53503487]
[1725003242330,0.05055178,139.63,139.62,3.5806]
[1725003243343,0.05055178,139.63,139.61,3.62856836]
[1725003247041,2.05055178,139.63,139.62,3.5806]
[1725003247744,2.05055178,139.63,139.61,3.62856836]
[1725003249148,2.05055178,139.63,139.61,0.04776836]
[1725003249642,2.05055178,139.63,139.61,3.62856836]
[1725003251551,2.05055178,139.63,139.62,3.5806]
[1725003252242,2.05055178,139.63,139.61,3.62846836]
[1725003254949,2.05055178,139.63,139.61,0.04776836]
[1725003256744,2.05055178,139.63,139.61,3.62856836]
[1725003263843,11.0,139.62,139.61,0.04776836]
[1725003264040,11.0,139.62,139.56,11.0]
[1725003264249,11.0,139.59,139.52,11.0]
[1725003264453,3.5816,139.58,139.52,20.02151683]
[1725003264657,11.0,139.58,139.52,14.66151683]
[1725003264842,14.5816,139.58,139.54,3.5824]
[1725003265044,14.5816,139.58,139.52,14.66151683]
[1725003265045,14.5816,139.58,139.55,0.0540918]
[1725003265350,0.05306124,139.57,139.55,0.0540918]
[1725003267854,2.05306124,139.57,139.55,0.0540918]
[1725003269451,2.05306124,139.57,139.55,3.6363918]
[1725003271353,2.05306124,139.57,139.56,3.5821]
[1725003271957,2.05306124,139.57,139.55,3.6362918]
[1725003272656,2.05306124,139.57,139.55,0.0540918]
[1725003273253,5.63486124,139.57,139.55,0.0540918]
[1725003273656,2.05306124,139.57,139.55,0.0540918]
[1725003273849,2.0,139.56,139.55,0.0540918]
[1725003277555,2.0,139.56,139.55,14.6364918]
[1725003282255,1.9536,139.56,139.55,14.6364918]
[1725003285760,0.05306124,139.57,139.56,3.5821]
[1725003291664,2.05306124,139.57,139.56,3.5821]
[1725003297971,2.05306124,139.57,139.56,14.5821]
[1725003299467,1.4062,139.65,139.56,11.0]
[1725003299668,2.7781,139.65,139.59,11.0]
[1725003299868,2.7781,139.65,139.6,3.50083174]
[1725003300272,2.7781,139.65,139.61,11.0]
[1725003300572,0.05311586,139.64,139.62,0.04949051]
[1725003300771,0.05311586,139.64,139.63,3.5803]
[1725003301579,81.49261151,139.94,139.63,11.90896692]
[1725003301879,11.0,139.66,139.63,24.5288563]
[1725003302063,3.5795,139.67,139.64,16.20018938]
[1725003302267,8.76831134,139.65,139.63,8.32866692]
[1725003302475,8.76831134,139.65,139.64,16.18071462]
[1725003302673,1.21295074,139.65,139.64,20.47692878]
[1725003302862,1.21295074,139.65,139.64,16.21652878]
[1725003303067,1.21295074,139.65,139.64,4.29621416]
[1725003303266,0.05258726,139.65,139.64,4.29621416]
[1725003303470,11.05258726,139.65,139.64,4.29621416]
[1725003304178,3.58,139.64,139.63,0.04628826]
[1725003304377,3.58,139.64,139.6,3.581]
[1725003304676,11.0,139.63,139.6,3.581]
[1725003305371,11.0,139.63,139.6,3.63260584]
[1725003306074,11.0,139.61,139.6,0.05160584]
[1725003306972,11.0,139.61,139.52,1.351]
[1725003307174,3.4949595,139.66,139.52,1.351]
[1725003307175,11.0,139.6,139.54,11.0]
[1725003307373,11.0,139.6,139.54,14.63782281]
[1725003307973,11.0,139.6,139.56,0.04530738]
[1725003307974,0.04830828,139.58,139.56,0.04530738]
[1725003308374,0.04830828,139.58,139.57,3.5817]
[1725003315587,0.04830828,139.58,139.57,14.5817]
[1725003324989,0.04830828,139.58,139.57,3.5817]
[1725003331795,0.04830828,139.58,139.57,14.5817]
[1725003335900,0.04830828,139.58,139.57,3.5817]
[1725003337700,0.04830828,139.58,139.57,14.5817]
[1725003342908,0.04830828,139.58,139.57,3.5817]
[1725003359119,0.04830828,139.58,139.57,14.5817]
[1725003360206,0.04830828,139.58,139.57,3.5817]
[1725003360415,3.9626,139.65,139.57,11.0]
[1725003360416,2.6283,139.65,139.57,11.0]
[1725003360615,7.88650185,139.64,139.6,11.0]
[1725003360910,2.6283,139.65,139.59,14.5811]
[1725003361118,11.0,139.64,139.59,14.5811]
[1725003361310,11.05010924,139.63,139.55,4.98]
[1725003361510,11.0,139.58,139.51,11.0]
[1725003361710,11.0,139.56,139.51,14.55730898]
[1725003361912,14.5821,139.56,139.52,3.5829]
[1725003362311,14.5821,139.56,139.53,0.04677401]
[1725003362514,0.04963649,139.55,139.53,0.04677401]
[1725003365115,3.63203649,139.55,139.53,0.04677401]
[1725003365313,15.98,139.54,139.41,4.29841087]
[1725003365513,11.0,139.51,139.44,11.0]
[1725003365720,14.5836,139.51,139.46,3.5846]
[1725003365926,19.5636,139.51,139.46,3.5846]
[1725003366218,0.04871554,139.5,139.46,3.5846]
[1725003366423,0.04871554,139.5,139.47,0.05369752]
[1725003367322,3.584,139.49,139.47,0.05369752]
[1725003367625,11.0,139.49,139.47,0.05369752]
[1725003368227,3.5842,139.48,139.47,0.05369752]
[1725003369724,3.584,139.49,139.47,0.05369752]
[1725003370123,1.32821554,139.5,139.47,0.05369752]
[1725003370628,4.91201554,139.5,139.47,0.05369752]
[1725003371125,11.0,139.49,139.47,0.05369752]
[1725003371316,14.5841,139.49,139.47,0.05369752]
[1725003371519,11.0,139.48,139.47,0.05369752]
[1725003372422,14.5842,139.48,139.47,0.05369752]
[1725003372618,1.4027,139.49,139.47,0.05369752]
[1725003372824,12.4027,139.49,139.47,0.05369752]
[1725003373218,3.5842,139.48,139.47,0.05369752]
[1725003375031,1.4027,139.49,139.47,0.05369752]
[1725003375331,11.0,139.49,139.47,0.05369752]
[1725003376024,3.5842,139.48,139.47,0.05369752]
[1725003376223,14.5842,139.48,139.47,0.05369752]
[1725003382336,19.5642,139.48,139.47,0.05369752]
[1725003383135,14.5842,139.48,139.47,0.05369752]
[1725003383343,3.5847,139.47,139.43,3.5854]
[1725003383535,11.0,139.44,139.37,8.57921024]
[1725003383840,11.0,139.42,139.37,3.59921024]
[1725003384139,11.0,139.39,139.34,1.3325]
[1725003384344,11.0,139.39,139.35,3.50148641]
[1725003384544,0.05489673,139.38,139.35,7.13546609]
[1725003386549,0.05489673,139.38,139.35,3.63397968]
[1725003386938,0.05489673,139.38,139.35,7.18035766]
[1725003387538,0.05489673,139.38,139.35,14.59305766]
[1725003387743,11.0,139.44,139.36,11.0]
[1725003387940,3.5854,139.43,139.38,14.5866]
[1725003388447,11.0,139.42,139.38,3.5866]
[1725003388650,0.04665279,139.41,139.39,3.63507818]
[1725003389651,0.04665279,139.41,139.39,0.04887818]
[1725003390546,0.04665279,139.41,139.39,3.63517818]
[1725003391148,0.04665279,139.41,139.4,3.5862]
[1725003392342,0.04665279,139.41,139.39,3.63527818]
[1725003394851,0.04665279,139.41,139.39,0.04887818]
[1725003395052,11.04665279,139.41,139.39,0.04887818]
[1725003395751,0.04665279,139.41,139.39,0.04887818]
[1725003395952,11.0,139.44,139.39,0.04887818]
[1725003396144,11.0,139.44,139.41,3.5859]
[1725003396859,11.04508312,139.44,139.41,7.14575591]
[1725003397543,11.04508312,139.44,139.41,3.5859]
[1725003398256,11.0,139.43,139.41,3.5859]
[1725003399954,11.0,139.43,139.42,3.5857]
[1725003400247,11.04508312,139.44,139.42,3.5857]
[1725003400446,11.04508312,139.44,139.43,3.5854]
[1725003400953,11.04508312,139.44,139.42,0.04821991]
[1725003402354,11.04508312,139.44,139.42,3.63391991]
[1725003402556,11.04508312,139.44,139.42,0.04821991]
[1725003404353,14.63038312,139.44,139.42,0.04821991]
[1725003406255,3.63038312,139.44,139.42,0.04821991]
[1725003406452,14.63038312,139.44,139.42,0.04821991]
[1725003406647,0.04508312,139.44,139.42,0.04821991]
[1725003406850,11.04508312,139.44,139.42,0.04821991]
[1725003409353,14.63038312,139.44,139.42,0.04821991]
[1725003409662,11.0,139.43,139.42,0.04821991]
[1725003410257,11.0,139.43,139.42,3.63391991]
[1725003412463,11.0,139.43,139.42,0.04821991]
[1725003414861,14.5854,139.43,139.42,0.04821991]
[1725003418264,11.04508312,139.44,139.42,0.04821991]
[1725003419155,0.04508312,139.44,139.42,0.04821991]
[1725003420767,11.0,139.43,139.42,0.04821991]
[1725003421656,16.08,139.43,139.42,0.04821991]
[1725003421965,3.5858,139.42,139.35,1.2865]
[1725003422163,11.0,139.4,139.35,1.2865]
[1725003422357,11.0,139.38,139.34,3.66964734]
[1725003422557,11.0,139.38,139.36,3.5871]
[1725003422871,11.04773769,139.38,139.36,0.04520725]
[1725003423170,0.04773769,139.38,139.36,0.04520725]
[1725003423862,11.0,139.37,139.36,0.04520725]
[1725003424061,11.0,139.34,139.29,7.69955577]
[1725003424261,11.0,139.34,139.3,3.5886]
[1725003424964,0.04717988,139.33,139.31,3.63801958]
[1725003426362,0.04717988,139.33,139.31,0.04951958]
[1725003427055,0.04717988,139.33,139.32,3.5883]
[1725003429362,8.6865,139.39,139.34,3.5876]
[1725003429555,11.0,139.37,139.34,3.5876]
[1725003429759,11.0,139.37,139.35,3.5874]
[1725003430167,3.64564192,139.48,139.36,3.5678448]
[1725003430460,11.05302859,139.42,139.39,0.04901221]
[1725003430663,14.63176384,139.42,139.39,0.04663781]
[1725003431167,18.26345466,139.42,139.39,0.04663781]
[1725003431560,3.586,139.41,139.39,0.04663781]
[1725003431871,14.67755466,139.42,139.39,0.04663781]
[1725003431872,11.0,139.4,139.39,0.04663781]
[1725003432270,14.5862,139.4,139.39,0.04663781]
[1725003433969,11.0,139.4,139.39,0.04663781]
[1725003434267,3.67755466,139.42,139.39,0.04663781]
[1725003434458,11.0,139.41,139.39,0.04663781]
[1725003436964,14.5862,139.4,139.39,0.04663781]
[1725003437168,11.0,139.4,139.39,0.04663781]
[1725003437765,11.0,139.37,139.31,11.0]
[1725003438269,11.0,139.37,139.35,3.5873]
[1725003438575,11.0,139.36,139.3,1.3082]
[1725003438766,11.0,139.35,139.3,6.5282]
[1725003438966,0.0506837,139.34,139.31,0.0455442]
[1725003439166,0.0506837,139.34,139.32,3.5881]
[1725003440575,0.0506837,139.34,139.33,3.588]
[1725003441170,16.22,139.39,139.33,3.588]
[1725003441383,16.22,139.39,139.35,3.5873]
[1725003441682,11.0,139.38,139.31,11.0]
[1725003441868,11.0,139.36,139.33,3.5879]
[1725003442274,11.05019466,139.36,139.33,3.63393464]
[1725003443673,0.05019466,139.36,139.34,3.5877]
[1725003444483,0.05019466,139.36,139.33,3.63393464]
[1725003447082,0.05019466,139.36,139.34,3.5877]
[1725003449176,0.05019466,139.36,139.33,0.04603464]
[1725003449781,0.05019466,139.36,139.35,3.5875]
[1725003449980,0.05019466,139.36,139.35,14.5875]
[1725003450579,0.05019466,139.36,139.35,3.5875]
[1725003451276,0.05019466,139.36,139.33,0.04603464]
[1725003452286,0.05019466,139.36,139.35,3.5875]
[1725003453081,0.05019466,139.36,139.33,0.04603464]
[1725003453284,11.05019466,139.36,139.33,0.04603464]
[1725003454389,11.05019466,139.36,139.34,3.5876]
[1725003458487,14.5875,139.35,139.33,0.04603464]
[1725003458685,11.0,139.34,139.33,0.04603464]
[1725003461686,14.5878,139.34,139.33,0.04603464]
[1725003463383,3.5878,139.34,139.33,0.04603464]
[1725003463583,11.0,139.34,139.33,0.04603464]
[1725003464480,14.5878,139.34,139.33,0.04603464]
[1725003464694,11.0,139.34,139.33,0.04603464]
[1725003465695,11.05019466,139.36,139.33,0.04603464]
[1725003466196,11.05019466,139.36,139.33,3.63393464]
[1725003468787,14.63749466,139.36,139.33,0.04603464]
[1725003469282,0.05019466,139.36,139.33,0.04603464]
[1725003470102,0.05019466,139.36,139.34,3.5876]
[1725003470290,0.05019466,139.36,139.33,0.04603464]
[1725003470291,11.05019466,139.36,139.33,0.04603464]
[1725003470493,11.0,139.35,139.33,0.04603464]
[1725003475790,11.0,139.35,139.33,3.63403464]
[1725003476192,11.05019466,139.36,139.33,3.63403464]
[1725003476500,11.0,139.35,139.33,3.63403464]
[1725003477498,11.0,139.35,139.33,0.04603464]
[1725003479295,18.13433265,139.35,139.33,0.04603464]
[1725003480397,0.05019466,139.36,139.33,0.04603464]
[1725003481298,0.05019466,139.36,139.34,3.5876]
[1725003484504,0.05019466,139.36,139.33,0.04603464]
[1725003485102,0.05019466,139.36,139.34,3.5876]
[1725003485498,0.05019466,139.36,139.33,0.04603464]
[1725003485708,0.05019466,139.36,139.35,3.5875]
[1725003487092,11.05019466,139.36,139.33,0.04603464]
[1725003487292,11.0,139.34,139.33,0.04603464]
[1725003488795,0.05019466,139.36,139.33,0.04603464]
[1725003489005,11.0,139.35,139.33,0.04603464]
[1725003489697,0.05019466,139.36,139.33,0.04603464]
[1725003489904,11.0,139.35,139.33,0.04603464]
[1725003490294,11.0,139.35,139.34,3.5878]
[1725003491394,11.05019466,139.36,139.34,3.5878]
[1725003491594,0.05019466,139.36,139.35,3.5875]
[1725003498619,8.85169082,139.42,139.38,3.5866]
[1725003498906,11.0,139.4,139.38,3.5866]
[1725003499108,3.55528768,139.39,139.37,3.5869]
[1725003499609,3.60604412,139.39,139.37,0.04752368]
[1725003499904,11.0,139.38,139.37,0.04752368]
[1725003505111,11.0,139.38,139.37,3.63452368]
[1725003506009,3.60604412,139.39,139.37,3.63452368]
[1725003507408,3.60604412,139.39,139.38,3.5867]
[1725003508515,2.6553,139.46,139.37,0.04752368]
[1725003508714,18.89512131,139.45,139.42,3.5856]
[1725003508910,11.0,139.47,139.4,11.0]
[1725003509108,11.0,139.47,139.45,3.5848]
[1725003509601,0.05447789,139.47,139.46,3.5847]
[1725003510106,0.05447789,139.47,139.45,0.04735047]
[1725003510107,11.05447789,139.47,139.45,0.04735047]
[1725003511198,14.63907789,139.47,139.45,0.04735047]
[1725003512606,11.05447789,139.47,139.45,0.04735047]
[1725003512807,11.05447789,139.47,139.45,3.63225047]
[1725003513113,0.05447789,139.47,139.45,3.63225047]
[1725003513806,0.05447789,139.47,139.46,3.5847]
[1725003516404,0.05447789,139.47,139.45,0.04735047]
[1725003516608,0.05447789,139.47,139.37,14.52655423]
[1725003516609,11.0,139.46,139.37,14.52655423]
[1725003516820,0.05447789,139.47,139.39,5.2]
[1725003516821,11.0,139.43,139.39,5.2]
[1725003517008,11.0,139.43,139.38,7.9452]
[1725003517610,11.05247156,139.43,139.42,3.5857]
[1725003517815,11.05247156,139.43,139.4,0.04619541]
[1725003518004,27.59247156,139.43,139.41,3.5859]
[1725003518207,27.59247156,139.43,139.4,0.04619541]
[1725003518813,27.59247156,139.43,139.41,3.5859]
[1725003519210,27.59247156,139.43,139.4,0.04619541]
[1725003519416,27.59247156,139.43,139.42,3.5857]
[1725003519617,27.59247156,139.43,139.4,0.04619541]
[1725003520418,27.59247156,139.43,139.41,3.5858]
[1725003521110,27.59247156,139.43,139.4,0.04619541]
[1725003522518,31.17807156,139.43,139.4,0.04619541]
[1725003523622,27.54,139.41,139.4,0.04619541]
[1725003534321,3.5858,139.42,139.4,0.04619541]
[1725003534622,27.54,139.41,139.4,0.04619541]
[1725003535522,31.126,139.41,139.4,0.04619541]
[1725003535730,27.54,139.41,139.33,4.07]
[1725003536028,27.54,139.38,139.33,7.7426981]
[1725003536232,27.54,139.38,139.33,3.6726981]
[1725003536430,27.54,139.36,139.31,1.3758]
[1725003536726,3.51481956,139.39,139.32,0.04895477]
[1725003536923,0.04798735,139.37,139.32,0.04895477]
[1725003537127,0.04798735,139.37,139.32,2.77465477]
[1725003537531,0.04798735,139.37,139.32,6.31063282]
[1725003537727,0.04798735,139.37,139.36,3.5872]
[1725003547437,0.04798735,139.37,139.35,3.63492889]
[1725003548136,0.04798735,139.37,139.36,3.5872]
[1725003549729,0.04798735,139.37,139.35,3.63502889]
[1725003551133,0.04798735,139.37,139.36,3.5872]
[1725003552844,0.04798735,139.37,139.35,3.63502889]
[1725003553231,11.06798735,139.37,139.35,0.04762889]
[1725003555238,11.02,139.36,139.35,0.04762889]
[1725003555647,14.6072,139.36,139.35,0.04762889]
[1725003559141,14.65518735,139.37,139.35,0.04762889]
[1725003560235,3.5872,139.36,139.35,0.04762889]